[Event "Early-Titled-Tuesday-Blitz-May-07-2024"]
[Site "Chess.com"]
[Date "2024.05.07"]
[Round "5"]
[White "subham777"]
[Black "C_K_G"]
[Result "0-1"]
[WhiteElo "2480"]
[BlackElo "2295"]
[TimeControl "180+1"]
[EndTime "9:00:40 PDT"]
[Termination "C_K_G won by resignation"]

1. e4 {[%clk 0:03:00.9]} 1... c5 {[%clk 0:02:52.7]} 2. Nf3 {[%clk 0:03:00.8]}
2... d6 {[%clk 0:02:52.6]} 3. d4 {[%clk 0:03:00.1]} 3... cxd4 {[%clk 0:02:52.9]}
4. Qxd4 {[%clk 0:03:01]} 4... Nf6 {[%clk 0:02:50.5]} 5. e5 {[%clk 0:03:00.8]}
5... Nc6 {[%clk 0:02:42.8]} 6. Bb5 {[%clk 0:02:59.4]} 6... Qa5+ {[%clk
0:02:15.3]} 7. Nc3 {[%clk 0:02:44.2]} 7... dxe5 {[%clk 0:02:15.1]} 8. Nxe5
{[%clk 0:02:45.1]} 8... Bd7 {[%clk 0:02:07.9]} 9. Bxc6 {[%clk 0:02:41.8]} 9...
Bxc6 {[%clk 0:02:05]} 10. Nxc6 {[%clk 0:02:41.6]} 10... bxc6 {[%clk 0:02:03.9]}
11. O-O {[%clk 0:02:41.1]} 11... e6 {[%clk 0:02:01.6]} 12. Bg5 {[%clk
0:02:31.7]} 12... Qxg5 {[%clk 0:01:56.7]} 13. Rad1 {[%clk 0:02:29.5]} 13... Be7
{[%clk 0:01:54]} 14. Ne4 {[%clk 0:02:24.8]} 14... Nxe4 {[%clk 0:01:29.6]} 15.
Qd7+ {[%clk 0:02:17.3]} 15... Kf8 {[%clk 0:01:25.6]} 16. Qxc6 {[%clk 0:02:18]}
16... Rd8 {[%clk 0:01:02.5]} 17. Qxe4 {[%clk 0:02:11.6]} 17... Rxd1 {[%clk
0:00:54.9]} 18. Rxd1 {[%clk 0:02:11.1]} 18... g6 {[%clk 0:00:54.5]} 19. Qd4
{[%clk 0:01:55.7]} 19... Bf6 {[%clk 0:00:42.1]} 20. Qxa7 {[%clk 0:01:52.2]}
20... Kg7 {[%clk 0:00:41.5]} 21. g3 {[%clk 0:01:44.7]} 21... Bxb2 {[%clk
0:00:39.8]} 22. Rd7 {[%clk 0:01:34.4]} 22... Rf8 {[%clk 0:00:37.8]} 23. Qc7
{[%clk 0:01:28.3]} 23... Qf6 {[%clk 0:00:35.2]} 24. Qc4 {[%clk 0:01:19.7]} 24...
h5 {[%clk 0:00:29.4]} 25. h4 {[%clk 0:01:17.6]} 25... Rd8 {[%clk 0:00:22.5]} 26.
Rxd8 {[%clk 0:01:05.4]} 26... Qxd8 {[%clk 0:00:23.4]} 27. a4 {[%clk 0:01:02.9]}
27... Qd1+ {[%clk 0:00:17.8]} 28. Kh2 {[%clk 0:01:02.4]} 28... Qd5 {[%clk
0:00:16.6]} 29. Qb3 {[%clk 0:00:59.7]} 29... Bd4 {[%clk 0:00:16.3]} 30. c4
{[%clk 0:00:50.5]} 30... Qf5 {[%clk 0:00:13.7]} 31. f4 {[%clk 0:00:48.6]} 31...
Qe4 {[%clk 0:00:12.9]} 32. Qa2 {[%clk 0:00:43]} 32... Qe3 {[%clk 0:00:10.8]} 33.
Kg2 {[%clk 0:00:20.7]} 33... Qg1+ {[%clk 0:00:10.6]} 34. Kf3 {[%clk 0:00:21.1]}
34... Qe3+ {[%clk 0:00:10.2]} 35. Kg2 {[%clk 0:00:21.3]} 35... Qe4+ {[%clk
0:00:10.3]} 36. Kh2 {[%clk 0:00:20.5]} 36... Qf3 {[%clk 0:00:09.4]} 37. a5
{[%clk 0:00:13.9]} 37... Qf2+ {[%clk 0:00:09.4]} 38. Qxf2 {[%clk 0:00:14]} 38...
Bxf2 {[%clk 0:00:10.2]} 39. Kg2 {[%clk 0:00:14.9]} 39... Bc5 {[%clk 0:00:10.5]}
40. Kf3 {[%clk 0:00:15.2]} 40... Kf6 {[%clk 0:00:11.4]} 41. Ke4 {[%clk
0:00:15.3]} 41... Ke7 {[%clk 0:00:09.7]} 42. Ke5 {[%clk 0:00:15.7]} 42... f6+
{[%clk 0:00:10.2]} 43. Ke4 {[%clk 0:00:15]} 43... Kd6 {[%clk 0:00:11.1]} 44. Kd3
{[%clk 0:00:14.5]} 44... e5 {[%clk 0:00:11.4]} 45. Ke4 {[%clk 0:00:13.5]} 45...
exf4 {[%clk 0:00:11.5]} 46. Kxf4 {[%clk 0:00:14.2]} 46... Ke6 {[%clk 0:00:11.9]}
47. Ke4 {[%clk 0:00:13.1]} 47... Ba7 {[%clk 0:00:11.9]} 48. Kf4 {[%clk
0:00:10.2]} 48... Kd6 {[%clk 0:00:12.3]} 49. g4 {[%clk 0:00:08.5]} 49... hxg4
{[%clk 0:00:12]} 50. Kxg4 {[%clk 0:00:08.6]} 50... Kc5 {[%clk 0:00:12.3]} 51. h5
{[%clk 0:00:08]} 51... gxh5+ {[%clk 0:00:12.1]} 52. Kxh5 {[%clk 0:00:08.2]}
52... Bb8 {[%clk 0:00:12]} 53. Kg6 {[%clk 0:00:06.6]} 53... Be5 {[%clk
0:00:12.9]} 54. Kf5 {[%clk 0:00:06.1]} 54... Bc3 {[%clk 0:00:12.5]} 55. Ke6
{[%clk 0:00:03.2]} 55... Kc6 {[%clk 0:00:12.6]} 56. Kf5 {[%clk 0:00:02.3]} 56...
Kb7 {[%clk 0:00:12.8]} 57. Ke6 {[%clk 0:00:01]} 57... Ka6 {[%clk 0:00:13.1]} 58.
c5 {[%clk 0:00:01.8]} 58... Kxa5 {[%clk 0:00:13.3]} 59. c6 {[%clk 0:00:02.5]}
59... Kb6 {[%clk 0:00:13.7]} 60. Kd7 {[%clk 0:00:03.1]} 60... Be5 {[%clk
0:00:14]} 61. Ke6 {[%clk 0:00:03.5]} 61... Kc7 {[%clk 0:00:14.1]} 62. Kd5 {[%clk
0:00:03.7]} 62... Bc3 {[%clk 0:00:13.5]} 63. Kc5 {[%clk 0:00:03.9]} 63... f5
{[%clk 0:00:13.6]} 64. Kd5 {[%clk 0:00:04.2]} 64... f4 {[%clk 0:00:13.5]} 65.
Ke4 {[%clk 0:00:04.5]} 65... Bd2 {[%clk 0:00:14.4]} 66. Kd3 {[%clk 0:00:04.9]}
66... Be3 {[%clk 0:00:15]} 67. Ke4 {[%clk 0:00:04.8]} 67... Kxc6 {[%clk
0:00:15.9]} 68. Kf3 {[%clk 0:00:04.2]} 68... Kd6 {[%clk 0:00:16.8]} 69. Kg4
{[%clk 0:00:04.7]} 69... Ke6 {[%clk 0:00:17.7]} 70. Kf3 {[%clk 0:00:05.3]} 70...
Ke5 {[%clk 0:00:18.3]} 71. Ke2 {[%clk 0:00:05.7]} 71... Ke4 {[%clk 0:00:19.2]}
72. Kf1 {[%clk 0:00:05.8]} 72... f3 {[%clk 0:00:19.4]} 73. Ke1 {[%clk
0:00:06.7]} 73... Kf4 {[%clk 0:00:20.2]} 74. Kf1 {[%clk 0:00:07.6]} 74... Kg3
{[%clk 0:00:20.7]} 75. Ke1 {[%clk 0:00:08.5]} 75... Kg2 {[%clk 0:00:21.2]} 76.
Kd1 {[%clk 0:00:08]} 76... f2 {[%clk 0:00:22.1]} 0-1

[Event "Early-Titled-Tuesday-Blitz-May-07-2024"]
[Site "Chess.com"]
[Date "2024.05.07"]
[Round "5"]
[White "ChessQueen"]
[Black "tusplingher"]
[Result "1/2-1/2"]
[WhiteElo "2805"]
[BlackElo "2566"]
[TimeControl "180+1"]
[EndTime "9:00:43 PDT"]
[Termination "Game drawn - insufficient material"]

1. Nf3 {[%clk 0:03:00.9]} 1... Nf6 {[%clk 0:02:58.9]} 2. g3 {[%clk 0:03:01]}
2... e6 {[%clk 0:02:55.7]} 3. Bg2 {[%clk 0:02:59.7]} 3... d5 {[%clk 0:02:56]} 4.
O-O {[%clk 0:02:59.8]} 4... Be7 {[%clk 0:02:55.9]} 5. d3 {[%clk 0:02:59.1]} 5...
O-O {[%clk 0:02:55.7]} 6. a4 {[%clk 0:02:57.5]} 6... c5 {[%clk 0:02:55.7]} 7.
Bf4 {[%clk 0:02:57.2]} 7... Nc6 {[%clk 0:02:54.4]} 8. e4 {[%clk 0:02:57.5]} 8...
dxe4 {[%clk 0:02:51.8]} 9. dxe4 {[%clk 0:02:58.4]} 9... Bd7 {[%clk 0:02:34.2]}
10. Nc3 {[%clk 0:02:55.6]} 10... Qc8 {[%clk 0:02:24.4]} 11. Bd6 {[%clk
0:02:49.5]} 11... Bxd6 {[%clk 0:02:18.1]} 12. Qxd6 {[%clk 0:02:50.4]} 12... b6
{[%clk 0:02:13.5]} 13. e5 {[%clk 0:02:47.8]} 13... Ne8 {[%clk 0:02:13.1]} 14.
Qd2 {[%clk 0:02:44]} 14... Nb4 {[%clk 0:02:05]} 15. Ne4 {[%clk 0:02:30.5]} 15...
Bc6 {[%clk 0:01:59.6]} 16. Rfe1 {[%clk 0:02:30.9]} 16... Qb7 {[%clk 0:01:48.9]}
17. Nfg5 {[%clk 0:02:13.6]} 17... h6 {[%clk 0:01:41.1]} 18. Nh3 {[%clk
0:02:13.8]} 18... f5 {[%clk 0:01:21.8]} 19. exf6 {[%clk 0:02:12.3]} 19... Nxf6
{[%clk 0:01:21.9]} 20. Nd6 {[%clk 0:02:07.1]} 20... Qd7 {[%clk 0:01:18.4]} 21.
Nf4 {[%clk 0:01:46.5]} 21... Bxg2 {[%clk 0:01:16.1]} 22. Kxg2 {[%clk 0:01:46.5]}
22... Rad8 {[%clk 0:01:10.5]} 23. Rad1 {[%clk 0:01:41.5]} 23... Nbd5 {[%clk
0:01:02.7]} 24. Nxd5 {[%clk 0:01:28.3]} 24... exd5 {[%clk 0:01:01.5]} 25. Nb5
{[%clk 0:01:26]} 25... a6 {[%clk 0:00:59.8]} 26. Nc3 {[%clk 0:01:23.8]} 26... d4
{[%clk 0:00:59.4]} 27. Ne4 {[%clk 0:01:22.2]} 27... Nxe4 {[%clk 0:00:49.6]} 28.
Rxe4 {[%clk 0:01:22]} 28... Qxa4 {[%clk 0:00:30.3]} 29. Qe2 {[%clk 0:01:22.2]}
29... Qc6 {[%clk 0:00:28.6]} 30. f3 {[%clk 0:01:22.5]} 30... Rde8 {[%clk
0:00:28.5]} 31. Re1 {[%clk 0:01:06.4]} 31... Rxe4 {[%clk 0:00:28.6]} 32. Qc4+
{[%clk 0:01:05.3]} 32... Qe6 {[%clk 0:00:20.1]} 33. Qxe6+ {[%clk 0:01:05.1]}
33... Rxe6 {[%clk 0:00:21]} 34. Rxe6 {[%clk 0:01:05.5]} 34... Rf6 {[%clk
0:00:21]} 35. Re7 {[%clk 0:01:06]} 35... Kf8 {[%clk 0:00:15.5]} 36. Rc7 {[%clk
0:01:05.5]} 36... Re6 {[%clk 0:00:14.2]} 37. Kf2 {[%clk 0:01:05.7]} 37... a5
{[%clk 0:00:14.5]} 38. b3 {[%clk 0:01:05.3]} 38... Re7 {[%clk 0:00:14.6]} 39.
Rc6 {[%clk 0:01:05.2]} 39... Rb7 {[%clk 0:00:14.8]} 40. Ke2 {[%clk 0:01:04.6]}
40... Ke7 {[%clk 0:00:14.6]} 41. Kd3 {[%clk 0:01:03.9]} 41... Kd7 {[%clk
0:00:14.9]} 42. Rg6 {[%clk 0:01:04]} 42... Kc8 {[%clk 0:00:15]} 43. f4 {[%clk
0:01:00.2]} 43... Kb8 {[%clk 0:00:13.5]} 44. f5 {[%clk 0:00:59.9]} 44... Re7
{[%clk 0:00:10.9]} 45. Rxb6+ {[%clk 0:00:59.1]} 45... Kc7 {[%clk 0:00:11.2]} 46.
Ra6 {[%clk 0:00:57.7]} 46... Re3+ {[%clk 0:00:07.2]} 47. Kd2 {[%clk 0:00:57.1]}
47... Rf3 {[%clk 0:00:06.7]} 48. g4 {[%clk 0:00:53.6]} 48... h5 {[%clk
0:00:05.9]} 49. Ra7+ {[%clk 0:00:48.4]} 49... Kb6 {[%clk 0:00:05.8]} 50. Rxg7
{[%clk 0:00:49.1]} 50... hxg4 {[%clk 0:00:06.4]} 51. Rxg4 {[%clk 0:00:46.7]}
51... Rxf5 {[%clk 0:00:05.9]} 52. h4 {[%clk 0:00:42.7]} 52... Kb5 {[%clk
0:00:05]} 53. Rg2 {[%clk 0:00:42.1]} 53... Rh5 {[%clk 0:00:04.3]} 54. Rh2 {[%clk
0:00:42.1]} 54... c4 {[%clk 0:00:04.9]} 55. Rh3 {[%clk 0:00:39.8]} 55... Kb4
{[%clk 0:00:04.5]} 56. bxc4 {[%clk 0:00:39.2]} 56... Kxc4 {[%clk 0:00:05]} 57.
Kc1 {[%clk 0:00:39.6]} 57... Kb4 {[%clk 0:00:05]} 58. Kb2 {[%clk 0:00:40]} 58...
a4 {[%clk 0:00:05.5]} 59. Ka2 {[%clk 0:00:39.9]} 59... Ka5 {[%clk 0:00:04.8]}
60. Ka3 {[%clk 0:00:40]} 60... Kb5 {[%clk 0:00:05.5]} 61. Rh1 {[%clk 0:00:38.7]}
61... Ka5 {[%clk 0:00:06]} 62. Rh2 {[%clk 0:00:38.2]} 62... Kb5 {[%clk
0:00:06.3]} 63. Rh3 {[%clk 0:00:38.8]} 63... Ka5 {[%clk 0:00:06.9]} 64. Rh1
{[%clk 0:00:38.8]} 64... Kb5 {[%clk 0:00:07.4]} 65. Rb1+ {[%clk 0:00:38.8]}
65... Ka5 {[%clk 0:00:08]} 66. Rb4 {[%clk 0:00:36]} 66... Rxh4 {[%clk
0:00:08.1]} 67. Rxa4+ {[%clk 0:00:36.1]} 67... Kb5 {[%clk 0:00:08.6]} 68. Ra8
{[%clk 0:00:36]} 68... Kc5 {[%clk 0:00:07.7]} 69. Rc8+ {[%clk 0:00:35.2]} 69...
Kd5 {[%clk 0:00:08.3]} 70. Kb3 {[%clk 0:00:35.8]} 70... Rh3+ {[%clk 0:00:07.9]}
71. Kb4 {[%clk 0:00:35.8]} 71... Rh7 {[%clk 0:00:07.4]} 72. Rd8+ {[%clk
0:00:35.6]} 72... Ke4 {[%clk 0:00:07.8]} 73. Kb3 {[%clk 0:00:35.9]} 73... Rb7+
{[%clk 0:00:07.5]} 74. Ka2 {[%clk 0:00:36.3]} 74... Ke3 {[%clk 0:00:06.9]} 75.
Ka3 {[%clk 0:00:35.7]} 75... Ke4 {[%clk 0:00:05]} 76. Ka2 {[%clk 0:00:35.4]}
76... Ke3 {[%clk 0:00:05.5]} 77. Ka3 {[%clk 0:00:35.8]} 77... Kd2 {[%clk
0:00:03.8]} 78. Rxd4+ {[%clk 0:00:35.1]} 78... Kc3 {[%clk 0:00:04.2]} 79. Ra4
{[%clk 0:00:31]} 79... Rb1 {[%clk 0:00:02.9]} 80. Ka2 {[%clk 0:00:29.6]} 80...
Rb2+ {[%clk 0:00:03.2]} 81. Ka1 {[%clk 0:00:28.6]} 81... Rxc2 {[%clk 0:00:03.9]}
82. Ra3+ {[%clk 0:00:26.6]} 82... Kd2 {[%clk 0:00:03.9]} 83. Ra2 {[%clk
0:00:27]} 83... Rxa2+ {[%clk 0:00:04]} 84. Kxa2 {[%clk 0:00:27.3]} 1/2-1/2

[Event "Early-Titled-Tuesday-Blitz-May-07-2024"]
[Site "Chess.com"]
[Date "2024.05.07"]
[Round "5"]
[White "YouShallNotPass001"]
[Black "ahkashefi2800"]
[Result "0-1"]
[WhiteElo "2448"]
[BlackElo "2589"]
[TimeControl "180+1"]
[EndTime "9:00:47 PDT"]
[Termination "ahkashefi2800 won by resignation"]

1. e4 {[%clk 0:03:00.9]} 1... c6 {[%clk 0:02:56.9]} 2. d4 {[%clk 0:02:57.5]}
2... d5 {[%clk 0:02:56.1]} 3. e5 {[%clk 0:02:58]} 3... Bf5 {[%clk 0:02:55.8]} 4.
h4 {[%clk 0:02:58.4]} 4... h5 {[%clk 0:02:54.7]} 5. Bd3 {[%clk 0:02:58.7]} 5...
Bxd3 {[%clk 0:02:54.5]} 6. Qxd3 {[%clk 0:02:59.6]} 6... e6 {[%clk 0:02:55.4]} 7.
Nd2 {[%clk 0:02:58]} 7... Qa5 {[%clk 0:02:54.2]} 8. Nf3 {[%clk 0:02:57.5]} 8...
c5 {[%clk 0:02:54.6]} 9. dxc5 {[%clk 0:02:49]} 9... Bxc5 {[%clk 0:02:50.7]} 10.
O-O {[%clk 0:02:49.4]} 10... Nc6 {[%clk 0:02:47.3]} 11. c4 {[%clk 0:02:37]}
11... Nge7 {[%clk 0:02:41.3]} 12. a3 {[%clk 0:02:35.1]} 12... O-O {[%clk
0:02:12.2]} 13. Rb1 {[%clk 0:02:24.7]} 13... dxc4 {[%clk 0:02:03]} 14. Nxc4
{[%clk 0:02:22.6]} 14... Qd8 {[%clk 0:02:03]} 15. Qe4 {[%clk 0:02:10.3]} 15...
Qd5 {[%clk 0:02:01.8]} 16. Qf4 {[%clk 0:02:10.1]} 16... Ng6 {[%clk 0:02:00.2]}
17. Qg5 {[%clk 0:02:00]} 17... Qxc4 {[%clk 0:01:59.2]} 18. Qxh5 {[%clk
0:01:59.6]} 18... Rfd8 {[%clk 0:01:53.5]} 19. Bg5 {[%clk 0:01:37.9]} 19... Rd3
{[%clk 0:01:47.1]} 20. Rbc1 {[%clk 0:01:17.1]} 20... Qd5 {[%clk 0:01:46.1]} 21.
Qg4 {[%clk 0:01:03.4]} 21... Rxf3 {[%clk 0:01:43]} 22. gxf3 {[%clk 0:01:02.3]}
22... Ncxe5 {[%clk 0:01:40.3]} 23. Qg2 {[%clk 0:00:59.5]} 23... Nxf3+ {[%clk
0:01:32.2]} 24. Kh1 {[%clk 0:00:57.1]} 24... Bf8 {[%clk 0:01:02.1]} 25. Rc3
{[%clk 0:00:58]} 25... Ngxh4 {[%clk 0:00:51.9]} 26. Bxh4 {[%clk 0:00:53.8]}
26... Nxh4 {[%clk 0:00:52.8]} 27. Qxd5 {[%clk 0:00:54.1]} 27... exd5 {[%clk
0:00:53.7]} 28. Rc7 {[%clk 0:00:54.4]} 28... Rd8 {[%clk 0:00:43.6]} 29. Rxb7
{[%clk 0:00:36.9]} 29... Bc5 {[%clk 0:00:43.4]} 30. b4 {[%clk 0:00:33.9]} 30...
Bb6 {[%clk 0:00:43.3]} 31. a4 {[%clk 0:00:34]} 31... Nf5 {[%clk 0:00:34.9]} 32.
a5 {[%clk 0:00:28.8]} 32... Bd4 {[%clk 0:00:34.3]} 33. Kg2 {[%clk 0:00:20.7]}
33... Rd6 {[%clk 0:00:31.3]} 34. Rd1 {[%clk 0:00:19.6]} 34... Rg6+ {[%clk
0:00:23.9]} 35. Kf1 {[%clk 0:00:20.1]} 35... Rf6 {[%clk 0:00:24.4]} 36. Ke2
{[%clk 0:00:20.3]} 36... g6 {[%clk 0:00:19.2]} 37. Rd3 {[%clk 0:00:20.2]} 37...
Kg7 {[%clk 0:00:18.2]} 38. f3 {[%clk 0:00:20.8]} 38... Re6+ {[%clk 0:00:17.6]}
39. Kd2 {[%clk 0:00:20.7]} 39... Be3+ {[%clk 0:00:17.6]} 40. Kc3 {[%clk
0:00:20.3]} 40... Rc6+ {[%clk 0:00:17.3]} 41. Kb3 {[%clk 0:00:20.3]} 41... Nd4+
{[%clk 0:00:10.3]} 42. Ka3 {[%clk 0:00:20.2]} 42... Rc4 {[%clk 0:00:08.1]} 43.
b5 {[%clk 0:00:19.8]} 43... Bc1+ {[%clk 0:00:06.8]} 44. Ka2 {[%clk 0:00:19.2]}
44... Ra4+ {[%clk 0:00:04]} 45. Kb1 {[%clk 0:00:19.3]} 45... Bf4 {[%clk
0:00:04.2]} 46. a6 {[%clk 0:00:19.3]} 46... Rb4+ {[%clk 0:00:04]} 47. Ka2 {[%clk
0:00:19.4]} 47... Nxb5 {[%clk 0:00:04.1]} 48. Rxd5 {[%clk 0:00:19.2]} 48... Nc3+
{[%clk 0:00:04]} 49. Ka3 {[%clk 0:00:19.7]} 49... Ra4+ {[%clk 0:00:02.5]} 50.
Kb3 {[%clk 0:00:19.6]} 50... Ra3+ {[%clk 0:00:02]} 51. Kc4 {[%clk 0:00:19.4]}
51... Nxd5 {[%clk 0:00:02.9]} 52. Kxd5 {[%clk 0:00:19.9]} 52... Rxa6 {[%clk
0:00:02.5]} 53. Ke4 {[%clk 0:00:19.1]} 53... Rd6 {[%clk 0:00:03.3]} 54. Kxf4
{[%clk 0:00:08]} 54... a6 {[%clk 0:00:04.2]} 55. Ra7 {[%clk 0:00:07.8]} 55...
Rf6+ {[%clk 0:00:05.1]} 56. Kg4 {[%clk 0:00:08.1]} 56... Kh6 {[%clk 0:00:03.5]}
57. f4 {[%clk 0:00:09]} 57... Kg7 {[%clk 0:00:03.5]} 58. Rb7 {[%clk 0:00:08.9]}
58... Rd6 {[%clk 0:00:03.7]} 59. Ra7 {[%clk 0:00:09.8]} 59... Re6 {[%clk
0:00:04]} 60. Kg5 {[%clk 0:00:10.1]} 60... Rf6 {[%clk 0:00:03.1]} 61. Kg4 {[%clk
0:00:10.7]} 61... Kf8 {[%clk 0:00:02.8]} 62. Kg5 {[%clk 0:00:10.9]} 62... Rf5+
{[%clk 0:00:03.3]} 63. Kg4 {[%clk 0:00:11.1]} 63... a5 {[%clk 0:00:03.7]} 64.
Ra8+ {[%clk 0:00:10.1]} 64... Ke7 {[%clk 0:00:02.8]} 65. Ra6 {[%clk 0:00:11]}
65... Kd7 {[%clk 0:00:03.1]} 66. Ra7+ {[%clk 0:00:11.2]} 66... Kc6 {[%clk
0:00:03.5]} 67. Kf3 {[%clk 0:00:11.8]} 67... Kb6 {[%clk 0:00:03.7]} 68. Ra8
{[%clk 0:00:12.2]} 68... Kb5 {[%clk 0:00:04.1]} 69. Ke4 {[%clk 0:00:12.7]} 69...
a4 {[%clk 0:00:03.6]} 70. Rb8+ {[%clk 0:00:13.3]} 70... Kc4 {[%clk 0:00:03.7]}
71. Rc8+ {[%clk 0:00:14]} 71... Kb4 {[%clk 0:00:02.7]} 72. Rb8+ {[%clk
0:00:14.6]} 72... Rb5 {[%clk 0:00:03.2]} 73. Ra8 {[%clk 0:00:15.1]} 73... a3
{[%clk 0:00:03.5]} 74. Ra7 {[%clk 0:00:15.8]} 74... Ra5 {[%clk 0:00:03.9]} 75.
Rxa5 {[%clk 0:00:16]} 75... Kxa5 {[%clk 0:00:03.7]} 0-1

[Event "Early-Titled-Tuesday-Blitz-May-07-2024"]
[Site "Chess.com"]
[Date "2024.05.07"]
[Round "5"]
[White "youngKID"]
[Black "Anton_Demchenko"]
[Result "1-0"]
[WhiteElo "2839"]
[BlackElo "2919"]
[TimeControl "180+1"]
[EndTime "9:00:58 PDT"]
[Termination "youngKID won by resignation"]

1. Nf3 {[%clk 0:03:00.9]} 1... Nf6 {[%clk 0:03:00]} 2. d4 {[%clk 0:03:00.8]}
2... d6 {[%clk 0:03:00.1]} 3. Nc3 {[%clk 0:03:00]} 3... Bf5 {[%clk 0:02:51.7]}
4. Bg5 {[%clk 0:02:59.5]} 4... Nbd7 {[%clk 0:02:50.6]} 5. g3 {[%clk 0:02:59.5]}
5... h6 {[%clk 0:02:49.6]} 6. Bxf6 {[%clk 0:02:59.8]} 6... Nxf6 {[%clk
0:02:50.5]} 7. Bg2 {[%clk 0:03:00.4]} 7... Bh7 {[%clk 0:02:37.9]} 8. O-O {[%clk
0:02:59.7]} 8... e6 {[%clk 0:02:37.3]} 9. Re1 {[%clk 0:02:59.7]} 9... d5 {[%clk
0:02:34.4]} 10. e3 {[%clk 0:01:48.5]} 10... Be7 {[%clk 0:02:31.2]} 11. Ne2
{[%clk 0:01:47.7]} 11... O-O {[%clk 0:02:29.9]} 12. c4 {[%clk 0:01:47.8]} 12...
c6 {[%clk 0:02:25.9]} 13. Rc1 {[%clk 0:01:45.7]} 13... Qb6 {[%clk 0:02:15.7]}
14. Qb3 {[%clk 0:01:27.6]} 14... dxc4 {[%clk 0:02:05.6]} 15. Rxc4 {[%clk
0:00:58.7]} 15... Qxb3 {[%clk 0:02:04.3]} 16. axb3 {[%clk 0:00:59.6]} 16... Nd5
{[%clk 0:02:04.8]} 17. Ne5 {[%clk 0:00:56.1]} 17... Rfd8 {[%clk 0:01:58.1]} 18.
Rd1 {[%clk 0:00:34.3]} 18... Nb4 {[%clk 0:01:53.5]} 19. e4 {[%clk 0:00:34.2]}
19... a5 {[%clk 0:01:40.9]} 20. Rcc1 {[%clk 0:00:32.6]} 20... a4 {[%clk
0:01:11]} 21. bxa4 {[%clk 0:00:33.5]} 21... Rxa4 {[%clk 0:01:11.3]} 22. Nc3
{[%clk 0:00:29.3]} 22... Raa8 {[%clk 0:01:08.1]} 23. Nc4 {[%clk 0:00:27.6]}
23... Kf8 {[%clk 0:01:00.3]} 24. f4 {[%clk 0:00:22.5]} 24... Bf6 {[%clk
0:00:55.7]} 25. e5 {[%clk 0:00:21.3]} 25... Be7 {[%clk 0:00:56.4]} 26. Be4
{[%clk 0:00:21.9]} 26... Bg8 {[%clk 0:00:51.2]} 27. Bb1 {[%clk 0:00:20.1]} 27...
b5 {[%clk 0:00:46.4]} 28. Ne3 {[%clk 0:00:20.4]} 28... Rd7 {[%clk 0:00:34]} 29.
Kf2 {[%clk 0:00:13.1]} 29... Rad8 {[%clk 0:00:34.1]} 30. Ne2 {[%clk 0:00:13.7]}
30... f5 {[%clk 0:00:29.7]} 31. Rc3 {[%clk 0:00:07.5]} 31... Bf7 {[%clk
0:00:29.4]} 32. Rdc1 {[%clk 0:00:07.8]} 32... Ra7 {[%clk 0:00:27.4]} 33. h3
{[%clk 0:00:07.5]} 33... Be8 {[%clk 0:00:22.5]} 34. Kf3 {[%clk 0:00:06.5]} 34...
Ra1 {[%clk 0:00:12.3]} 35. Kf2 {[%clk 0:00:05.8]} 35... Ra7 {[%clk 0:00:11.2]}
36. Kf3 {[%clk 0:00:06.3]} 36... Bd7 {[%clk 0:00:11.1]} 37. g4 {[%clk
0:00:06.6]} 37... g6 {[%clk 0:00:11.1]} 38. g5 {[%clk 0:00:06.7]} 38... hxg5
{[%clk 0:00:10.3]} 39. Rg1 {[%clk 0:00:07.2]} 39... Kf7 {[%clk 0:00:08.4]} 40.
fxg5 {[%clk 0:00:07.1]} 40... Rh8 {[%clk 0:00:09.1]} 41. Nf4 {[%clk 0:00:07.7]}
41... Ra1 {[%clk 0:00:08.3]} 42. Rf1 {[%clk 0:00:06]} 42... Bxg5 {[%clk
0:00:07.6]} 43. Neg2 {[%clk 0:00:03.4]} 43... Be7 {[%clk 0:00:07.3]} 44. Kg3
{[%clk 0:00:02.4]} 44... g5 {[%clk 0:00:07.9]} 45. Ne2 {[%clk 0:00:03]} 45...
Ke8 {[%clk 0:00:08.2]} 46. Kh2 {[%clk 0:00:03]} 46... g4 {[%clk 0:00:07.6]} 47.
Nef4 {[%clk 0:00:01.5]} 47... Bg5 {[%clk 0:00:08.3]} 48. Kg3 {[%clk 0:00:01.5]}
48... gxh3 {[%clk 0:00:08.3]} 49. Nxh3 {[%clk 0:00:02.3]} 49... Bh6 {[%clk
0:00:09.2]} 50. Nhf4 {[%clk 0:00:02.7]} 50... Rg8+ {[%clk 0:00:10]} 51. Kh2
{[%clk 0:00:02.9]} 51... Ra7 {[%clk 0:00:09.5]} 52. Re1 {[%clk 0:00:02.5]} 52...
Ke7 {[%clk 0:00:10]} 53. Rh3 {[%clk 0:00:02.4]} 53... Bxf4+ {[%clk 0:00:08.5]}
54. Nxf4 {[%clk 0:00:03.3]} 54... Rg7 {[%clk 0:00:08.1]} 55. Rg1 {[%clk
0:00:03.2]} 55... Rxg1 {[%clk 0:00:07.9]} 56. Kxg1 {[%clk 0:00:04.1]} 56... Kd8
{[%clk 0:00:06.8]} 57. Kf2 {[%clk 0:00:04.3]} 57... Kc7 {[%clk 0:00:06.9]} 58.
Rh7 {[%clk 0:00:04.3]} 58... Kb6 {[%clk 0:00:07.4]} 59. Kf3 {[%clk 0:00:03.5]}
59... Nd5 {[%clk 0:00:07.6]} 60. Nxd5+ {[%clk 0:00:03.3]} 60... cxd5 {[%clk
0:00:08.5]} 61. Kf4 {[%clk 0:00:04]} 61... b4 {[%clk 0:00:08.9]} 62. Rh6 {[%clk
0:00:03.9]} 62... Rc7 {[%clk 0:00:05.9]} 63. Bxf5 {[%clk 0:00:04]} 63... Rc4
{[%clk 0:00:03.3]} 64. Bxe6 {[%clk 0:00:03.9]} 64... Rxd4+ {[%clk 0:00:04]} 65.
Kf5 {[%clk 0:00:02.9]} 65... Bxe6+ {[%clk 0:00:02.9]} 66. Kxe6 {[%clk
0:00:03.8]} 66... Kc5 {[%clk 0:00:03.3]} 67. Kd7 {[%clk 0:00:04.3]} 67... Rd2
{[%clk 0:00:02.9]} 68. Rc6+ {[%clk 0:00:03.1]} 68... Kb5 {[%clk 0:00:03]} 69. e6
{[%clk 0:00:04]} 69... Rxb2 {[%clk 0:00:03.3]} 70. e7 {[%clk 0:00:04.4]} 70...
Re2 {[%clk 0:00:02.9]} 71. Re6 {[%clk 0:00:05.1]} 71... Rxe6 {[%clk 0:00:02.7]}
72. Kxe6 {[%clk 0:00:06]} 72... b3 {[%clk 0:00:03.6]} 73. e8=Q+ {[%clk
0:00:06.6]} 73... Kc4 {[%clk 0:00:04]} 74. Qc6+ {[%clk 0:00:06.8]} 74... Kb4
{[%clk 0:00:04.3]} 75. Kxd5 {[%clk 0:00:06.4]} 75... b2 {[%clk 0:00:05.2]} 76.
Qc2 {[%clk 0:00:06.8]} 76... Ka3 {[%clk 0:00:05.5]} 77. Qb1 {[%clk 0:00:07.7]}
77... Kb3 {[%clk 0:00:06.4]} 78. Kd4 {[%clk 0:00:08.4]} 78... Ka3 {[%clk
0:00:06.8]} 79. Kc3 {[%clk 0:00:09.3]} 1-0